bitfinex-derivatives/quotes_BTCF0:USTF0_20250911
["timestamp","ask_amount","ask_price","bid_price","bid_amount"]
[1757630654979,0.50427279,115160.0,115150.0,0.007]
[1757630655181,0.03525,115140.0,115130.0,0.07722564]
[1757630655379,0.03525,115130.0,115120.0,0.07722564]
[1757630655574,0.1471944,115130.0,115120.0,0.00866655]
[1757630655881,0.03525,115120.0,115110.0,0.20947107]
[1757630656174,0.03525,115120.0,115110.0,0.38947107]
[1757630656378,0.03525,115120.0,115110.0,0.46023416]
[1757630656678,0.03525,115120.0,115110.0,0.38300852]
[1757630657270,0.03525,115120.0,115110.0,0.38500852]
[1757630657471,0.03525,115120.0,115110.0,0.38700852]
[1757630658776,0.03525,115120.0,115110.0,0.39572728]
[1757630659276,0.03525,115120.0,115110.0,0.28378288]
[1757630659474,0.03525,115120.0,115110.0,0.39572728]
[1757630660581,0.03525,115120.0,115110.0,0.37542625]
[1757630663076,0.03525,115120.0,115110.0,0.26348185]
[1757630663277,0.01275,115130.0,115110.0,0.82421025]
[1757630663470,0.01275,115130.0,115120.0,0.2238888]
[1757630663675,0.01275,115130.0,115120.0,0.3738888]
[1757630664480,0.03618,115130.0,115120.0,0.3738888]
[1757630665274,0.03618,115130.0,115120.0,0.3538888]
[1757630665875,0.03618,115130.0,115120.0,0.43111444]
[1757630666273,0.03618,115130.0,115120.0,0.43211444]
[1757630666680,0.03618,115130.0,115120.0,0.57621444]
[1757630666882,0.03618,115130.0,115120.0,0.43211444]
[1757630667082,0.03618,115130.0,115120.0,0.45211444]
[1757630668083,0.03618,115130.0,115120.0,0.07822564]
[1757630668285,0.01375,115130.0,115120.0,0.44211444]
[1757630668484,0.01375,115130.0,115120.0,0.3648888]
[1757630669975,0.01375,115130.0,115120.0,0.4517233]
[1757630670181,0.001,115130.0,115120.0,1.42478113]
[1757630670391,0.001,115130.0,115120.0,1.45545586]
[1757630671191,0.001,115130.0,115120.0,2.25353586]
[1757630671481,0.001,115130.0,115120.0,2.14159146]
[1757630671686,0.001,115130.0,115120.0,2.0339033]
[1757630672080,0.001,115130.0,115120.0,2.1458477]
[1757630672277,0.01275,115150.0,115130.0,0.0868215]
[1757630672480,0.01275,115150.0,115140.0,0.07700848]
[1757630672686,0.03518,115150.0,115140.0,0.07700848]
[1757630672990,0.03518,115150.0,115140.0,0.4129503]
[1757630673591,0.03518,115150.0,115140.0,0.33594182]
[1757630673790,0.03818,115150.0,115140.0,0.33594182]
[1757630673989,0.03818,115150.0,115140.0,0.41295914]
[1757630674391,0.03918,115150.0,115140.0,0.41295914]
[1757630674587,0.03918,115150.0,115140.0,0.33594182]
[1757630674992,0.03918,115150.0,115140.0,0.41296798]
[1757630675488,0.03918,115150.0,115140.0,0.33594182]
[1757630675688,0.03918,115150.0,115140.0,0.41297534]
[1757630680388,0.03918,115150.0,115140.0,0.33594182]
[1757630680784,0.01675,115150.0,115140.0,0.33594182]
[1757630681297,0.03918,115150.0,115140.0,0.33594182]
[1757630683998,0.03918,115150.0,115140.0,0.48594182]
[1757630684400,0.004,115150.0,115140.0,0.99073213]
[1757630684692,0.004,115150.0,115140.0,1.4385447]
[1757630684893,0.01745,115150.0,115140.0,1.43865902]
[1757630685593,0.01645,115150.0,115140.0,1.43865902]
[1757630685799,0.01745,115150.0,115140.0,1.43865902]
[1757630686300,0.01645,115150.0,115140.0,1.43865902]
[1757630686499,0.01745,115150.0,115140.0,1.43865902]
[1757630686701,0.01445,115150.0,115140.0,1.43865902]
[1757630686898,0.01745,115150.0,115140.0,1.58275902]
[1757630687999,0.01745,115150.0,115140.0,2.38039902]
[1757630689704,0.01745,115150.0,115140.0,2.64459902]
[1757630690503,0.01745,115150.0,115140.0,2.64451902]
[1757630690799,0.01745,115150.0,115140.0,2.53659213]
[1757630690999,0.01745,115150.0,115140.0,2.20065031]
[1757630691206,0.01745,115150.0,115140.0,2.53659213]
[1757630691703,0.004,115150.0,115140.0,2.53659213]
[1757630691899,0.004,115150.0,115140.0,2.64451301]
[1757630692097,0.004,115150.0,115140.0,2.66474508]
[1757630692300,0.004,115150.0,115140.0,2.5568242]
[1757630693298,0.004,115150.0,115140.0,2.3068242]
[1757630693501,0.004,115150.0,115140.0,2.64367121]
[1757630693706,0.01345,115170.0,115150.0,0.0868054]
[1757630693908,0.01345,115170.0,115160.0,1.38815713]
[1757630694107,0.01345,115170.0,115160.0,1.92815713]
[1757630694307,0.01345,115170.0,115160.0,2.03606564]
[1757630694709,0.01345,115170.0,115160.0,1.92815713]
[1757630695210,0.01745,115170.0,115160.0,1.92815713]
[1757630696097,0.004,115170.0,115160.0,2.07225713]
[1757630696301,0.004,115170.0,115160.0,2.32225713]
[1757630697008,0.001,115170.0,115160.0,2.32225713]
[1757630697405,0.001,115170.0,115160.0,1.52481713]
[1757630697710,0.01345,115180.0,115160.0,2.40893473]
[1757630697909,0.01345,115180.0,115170.0,0.44374445]
[1757630698203,0.01358,115190.0,115170.0,0.68054125]
[1757630698405,0.03655,115190.0,115180.0,1.2102182]
[1757630698608,0.03655,115190.0,115180.0,1.27970246]
[1757630699311,0.03755,115190.0,115180.0,1.27970246]
[1757630700112,0.03755,115190.0,115180.0,1.27870246]
[1757630700510,0.01458,115190.0,115180.0,1.27870246]
[1757630700714,0.01458,115190.0,115180.0,2.14346267]
[1757630700915,0.01658,115190.0,115180.0,2.06646629]
[1757630701112,0.003,115190.0,115180.0,1.70646629]
[1757630701321,0.01358,115200.0,115190.0,0.0867817]
[1757630701520,0.01358,115200.0,115190.0,0.5528574]
[1757630701822,0.01358,115200.0,115190.0,0.30797091]
[1757630702015,0.01358,115200.0,115190.0,0.55285076]
[1757630702321,0.01358,115200.0,115190.0,0.56147314]
[1757630702715,0.01358,115200.0,115190.0,1.35859314]
[1757630702915,0.03655,115200.0,115190.0,0.56147314]
[1757630703112,0.03655,115200.0,115190.0,1.19062223]
[1757630703315,0.03655,115200.0,115190.0,1.35859314]
[1757630703720,0.03655,115200.0,115190.0,0.56147314]
[1757630703925,0.03655,115200.0,115190.0,1.35955314]
[1757630704221,0.03655,115200.0,115190.0,0.42247314]
[1757630704423,0.03655,115200.0,115190.0,1.05154223]
[1757630704926,0.03655,115200.0,115190.0,0.97463329]
[1757630706421,0.03655,115200.0,115190.0,0.3455642]
[1757630706625,0.03655,115200.0,115190.0,0.97455329]
[1757630706920,0.03655,115200.0,115190.0,1.1425242]
[1757630711815,0.03655,115200.0,115190.0,1.2866242]
[1757630712124,0.03655,115200.0,115190.0,1.1425242]
[1757630712526,0.01358,115200.0,115190.0,1.1425242]
[1757630713431,0.01358,115200.0,115190.0,1.229306]
[1757630713629,0.01358,115200.0,115190.0,1.1425242]
[1757630714032,0.01358,115200.0,115190.0,1.229306]
[1757630714327,0.01358,115200.0,115190.0,1.1425242]
[1757630716133,0.01766605,115230.0,115210.0,0.0867667]
[1757630716428,0.02297,115230.0,115220.0,0.36568182]
[1757630716627,0.03655,115230.0,115220.0,0.42002334]
[1757630717426,0.03855,115230.0,115220.0,0.42002334]
[1757630718124,0.03655,115230.0,115220.0,0.42002334]
[1757630718323,0.04155,115230.0,115220.0,0.42002334]
[1757630719537,0.04155,115230.0,115220.0,0.43348334]
[1757630719836,0.20452091,115260.0,115250.0,0.02216]
[1757630720136,1.53655,115260.0,115250.0,0.19013091]
[1757630720338,1.70452091,115260.0,115250.0,0.19013091]
[1757630720638,1.53655,115260.0,115250.0,0.19013091]
[1757630720832,1.52297,115260.0,115250.0,0.20359091]
[1757630721037,1.70194091,115260.0,115250.0,0.20359091]
[1757630721639,1.53397,115260.0,115250.0,0.20359091]
[1757630722033,1.53397,115260.0,115250.0,0.21225144]
[1757630722835,1.53397,115260.0,115250.0,0.23216269]
[1757630723038,0.011,115260.0,115250.0,0.4001336]
[1757630723239,0.011,115260.0,115250.0,0.23216269]
[1757630723433,0.03422,115260.0,115250.0,0.23216269]
[1757630724141,0.03422,115260.0,115250.0,0.21225144]
[1757630725937,0.80999791,115290.0,115250.0,0.21225144]
[1757630725938,0.02327791,115290.0,115280.0,0.03508]
[1757630726138,0.02327791,115290.0,115270.0,0.022]
[1757630726139,0.01284,115280.0,115270.0,0.022]
[1757630726443,1.87200182,115280.0,115270.0,0.022]
[1757630726638,2.12200182,115280.0,115270.0,0.022]
[1757630726840,1.95403091,115280.0,115270.0,0.18997091]
[1757630727938,2.75615091,115280.0,115270.0,0.18997091]
[1757630728134,1.96003091,115280.0,115270.0,0.18997091]
[1757630728339,2.75611091,115280.0,115270.0,0.18997091]
[1757630728543,2.75611091,115280.0,115270.0,0.20305091]
[1757630729242,2.58814,115280.0,115270.0,0.20305091]
[1757630729443,2.75611091,115280.0,115270.0,0.20305091]
[1757630730142,1.52922,115280.0,115270.0,0.20305091]
[1757630730343,1.52922,115280.0,115270.0,0.27074672]
[1757630730543,1.52522,115280.0,115270.0,0.27074672]
[1757630731148,2.32114,115280.0,115270.0,0.27074672]
[1757630732442,2.3211,115280.0,115270.0,0.27074672]
[1757630733342,2.32106,115280.0,115270.0,0.27074672]
[1757630734348,2.32106,115280.0,115270.0,0.21453304]
[1757630735150,1.52522,115280.0,115270.0,0.21453304]
[1757630735446,2.32102,115280.0,115270.0,0.21453304]
[1757630735647,2.32102,115280.0,115270.0,0.10277581]
[1757630735848,2.32102,115280.0,115270.0,0.21453304]
[1757630738248,2.3209,115280.0,115270.0,0.21453304]
[1757630738746,1.52522,115280.0,115270.0,0.21453304]
[1757630738940,2.32086,115280.0,115270.0,0.21453304]
[1757630742447,1.52522,115280.0,115270.0,0.37453304]
[1757630742644,0.02522,115280.0,115270.0,0.21453304]
[1757630742847,0.55922,115280.0,115270.0,0.21453304]
[1757630743750,0.02522,115280.0,115270.0,0.21453304]
[1757630743957,0.8207,115280.0,115270.0,0.21453304]
[1757630744248,0.02522,115280.0,115270.0,0.21453304]
[1757630744451,0.82066,115280.0,115270.0,0.21453304]
[1757630749251,0.02522,115280.0,115270.0,0.47629027]
[1757630749453,0.8205,115280.0,115270.0,0.47629027]
[1757630749647,0.002,115280.0,115270.0,0.47629027]
[1757630749848,0.79728,115280.0,115270.0,0.47629027]
[1757630750059,0.8205,115280.0,115270.0,0.47629027]
[1757630750242,0.02522,115280.0,115270.0,0.36453304]
[1757630750447,0.8205,115280.0,115270.0,0.36453304]
[1757630752258,0.8205,115280.0,115270.0,0.21453304]
[1757630752457,0.8205,115280.0,115270.0,0.37453304]
[1757630752659,0.002,115280.0,115270.0,0.37453304]
[1757630752859,0.8204,115280.0,115270.0,0.37453304]
[1757630753054,0.002,115280.0,115270.0,0.48629027]
[1757630753254,0.002,115280.0,115270.0,0.56319921]
[1757630753952,0.002,115280.0,115270.0,0.40319921]
[1757630754153,0.002,115280.0,115270.0,0.54319921]
[1757630754353,0.002,115280.0,115270.0,0.48992071]
[1757630754857,0.002,115280.0,115270.0,0.64992071]
[1757630755356,0.002,115280.0,115270.0,0.82301177]
[1757630755555,0.81267786,115290.0,115280.0,0.01359]
[1757630755761,0.83583786,115290.0,115280.0,0.48636066]
[1757630756549,0.83583786,115290.0,115280.0,0.47636066]
[1757630756955,0.83579786,115290.0,115280.0,0.47636066]
[1757630757154,0.83579786,115290.0,115280.0,0.1128462]
[1757630757361,0.04071786,115290.0,115280.0,0.47636066]
[1757630757661,0.83579786,115290.0,115280.0,0.47636066]
[1757630758063,0.83579786,115290.0,115280.0,0.33636066]
[1757630758263,0.04071786,115290.0,115280.0,0.48636066]
[1757630758562,0.04071786,115290.0,115280.0,0.91483189]
[1757630758563,5.791e-05,115290.0,115280.0,0.91483189]
[1757630758756,0.00105791,115290.0,115280.0,0.75110169]
[1757630758957,0.00105791,115290.0,115280.0,0.85890432]
[1757630759162,0.00105791,115290.0,115280.0,0.36714709]
[1757630759362,0.02421791,115290.0,115280.0,0.52714709]
[1757630759565,0.02421791,115290.0,115280.0,0.36714709]
[1757630759764,0.02421791,115290.0,115280.0,0.52714709]
[1757630760465,0.02421791,115290.0,115280.0,0.03583]
[1757630760666,0.02421791,115290.0,115280.0,0.18583]
[1757630760863,0.02421791,115290.0,115280.0,0.40934446]
[1757630761258,0.00105791,115290.0,115280.0,0.11272857]
[1757630761459,0.02421791,115290.0,115280.0,0.25934446]
[1757630761662,0.00105791,115290.0,115280.0,0.52714709]
[1757630761868,0.02421791,115290.0,115280.0,0.52714709]
[1757630762568,0.00105791,115290.0,115280.0,0.98890432]
[1757630764071,0.00105791,115290.0,115280.0,0.58890432]
[1757630764268,0.00105791,115290.0,115280.0,0.67561832]
[1757630765769,0.00105791,115290.0,115280.0,0.95561832]
[1757630766270,0.00105791,115290.0,115280.0,0.84781569]
[1757630767375,0.00105791,115290.0,115280.0,0.57781569]
[1757630767573,0.00105791,115290.0,115280.0,0.72781569]
[1757630768366,0.00105791,115290.0,115280.0,1.52269569]
[1757630768569,0.00105791,115290.0,115280.0,1.63049832]
[1757630768775,0.00105791,115290.0,115280.0,0.93851263]
[1757630769075,0.00105791,115290.0,115280.0,1.39378432]
[1757630769274,0.00105791,115290.0,115280.0,1.88378432]
[1757630769475,0.00105791,115290.0,115280.0,1.52378432]
[1757630769676,0.00105791,115290.0,115280.0,1.61049832]
[1757630769875,0.00105791,115290.0,115280.0,1.87469832]
[1757630770073,0.00105791,115290.0,115280.0,2.14469832]
[1757630770274,0.00105791,115290.0,115280.0,1.62469832]
[1757630770573,0.00105791,115290.0,115280.0,1.75469832]
[1757630772069,0.00105791,115290.0,115280.0,1.74469832]
[1757630772672,0.00105791,115290.0,115280.0,1.87469832]
[1757630772876,0.00105791,115290.0,115280.0,2.20469832]
[1757630773380,0.00105791,115290.0,115280.0,1.87469832]
[1757630774380,0.00105791,115290.0,115280.0,1.91469832]
[1757630774875,0.00105791,115290.0,115280.0,1.62469832]
[1757630775080,0.00105791,115290.0,115280.0,2.13469832]
[1757630775480,0.00105791,115290.0,115280.0,2.13441404]
[1757630776379,0.00105791,115290.0,115280.0,2.02689569]
[1757630776775,0.00105791,115290.0,115280.0,2.17099569]
[1757630776982,0.00105791,115290.0,115280.0,2.02689569]
[1757630780478,0.00201851,115310.0,115280.0,2.34673744]
[1757630780674,0.00201851,115310.0,115300.0,0.03683]
[1757630780876,0.00201851,115310.0,115300.0,1.19130446]
[1757630781076,0.00201851,115310.0,115300.0,1.24570292]
[1757630781276,0.00201851,115310.0,115300.0,1.02218846]
[1757630781575,0.00201851,115310.0,115300.0,1.30812888]
[1757630781775,0.00201851,115310.0,115300.0,1.3088785]
[1757630781978,0.02517851,115310.0,115300.0,0.94536404]
[1757630782177,0.02517851,115310.0,115300.0,0.94572404]
[1757630782384,0.02517851,115310.0,115300.0,1.3292385]
[1757630782584,0.02817851,115310.0,115300.0,1.3292385]
[1757630783086,0.02813851,115310.0,115300.0,0.94572404]
[1757630783286,0.02813851,115310.0,115300.0,1.3092385]
[1757630783488,0.02813851,115310.0,115300.0,0.94572404]
[1757630783780,0.02813851,115310.0,115300.0,1.3292385]
[1757630784680,0.02813851,115310.0,115300.0,0.14440404]
[1757630784885,0.02813851,115310.0,115300.0,0.3679185]
[1757630785071,0.02813851,115310.0,115300.0,0.14440404]
[1757630785273,0.02813851,115310.0,115300.0,0.3679185]
[1757630786587,0.02813851,115310.0,115300.0,0.26034446]
[1757630786794,0.02813851,115310.0,115300.0,0.36798244]
[1757630787182,0.02813851,115310.0,115300.0,0.26034446]
[1757630787877,0.02813851,115310.0,115300.0,0.28079018]
[1757630788483,0.02813851,115310.0,115300.0,0.05727572]
[1757630788684,0.02813851,115310.0,115300.0,0.42079018]
[1757630790183,0.02813851,115310.0,115300.0,0.05727572]
[1757630790383,0.02813851,115310.0,115300.0,0.42079018]
[1757630790583,0.00501851,115310.0,115300.0,0.55254741]
[1757630790783,0.02813851,115310.0,115300.0,0.44079018]
[1757630790981,0.02813851,115310.0,115300.0,0.05727572]
[1757630791385,0.02813851,115310.0,115300.0,0.28079018]
[1757630791590,0.02813851,115310.0,115300.0,0.53846591]
[1757630791792,0.02813851,115310.0,115300.0,0.55846591]
[1757630792090,0.02813851,115310.0,115300.0,0.45079018]
[1757630794385,0.02813851,115310.0,115300.0,0.56231468]
[1757630794587,0.02813851,115310.0,115300.0,0.53231468]
[1757630796393,0.00348412,115310.0,115300.0,0.53231468]
[1757630796894,0.00348412,115310.0,115300.0,0.56231468]
[1757630797095,0.00348412,115310.0,115300.0,0.39231468]
[1757630797298,0.00348412,115310.0,115300.0,0.55983416]
[1757630797488,0.00348412,115310.0,115300.0,0.71983416]
[1757630798299,0.00348412,115310.0,115300.0,0.39231468]
[1757630798491,0.00348412,115310.0,115300.0,0.53231468]
[1757630798894,0.00348412,115310.0,115300.0,0.56231468]
[1757630799495,0.00348412,115310.0,115300.0,0.67000761]
[1757630800497,0.00348412,115310.0,115300.0,0.50000761]
[1757630800688,0.00348412,115310.0,115300.0,0.55231468]
[1757630803497,0.61384896,115320.0,115310.0,0.10772353]
[1757630803694,0.61384896,115320.0,115310.0,0.19326367]
[1757630803893,0.44632948,115320.0,115310.0,0.25305962]
[1757630804491,0.44632948,115320.0,115310.0,0.27469962]
[1757630805400,0.44632948,115320.0,115310.0,0.34313463]
[1757630806302,0.44632948,115320.0,115310.0,0.26616957]
[1757630806501,0.27881,115320.0,115310.0,0.26616957]
[1757630806701,0.44632948,115320.0,115310.0,0.26616957]
[1757630806901,0.44632948,115320.0,115310.0,0.34313766]
[1757630807298,0.61384896,115320.0,115310.0,0.07696809]
[1757630807499,0.0369,115310.0,115300.0,0.07696809]
[1757630807698,1.01965948,115310.0,115300.0,0.24448757]
[1757630808298,1.01965948,115310.0,115300.0,0.16751948]
[1757630809098,1.01965948,115310.0,115290.0,0.08553709]
[1757630809302,0.0369,115300.0,115290.0,0.10717709]
[1757630810504,0.0369,115300.0,115290.0,0.27469657]
[1757630811106,0.0369,115300.0,115290.0,0.30545201]
[1757630811706,0.0369,115300.0,115290.0,0.19772848]
[1757630811894,0.0369,115300.0,115290.0,0.30545201]
[1757630812299,0.0369,115300.0,115290.0,0.27462448]
[1757630813307,0.0369,115300.0,115290.0,0.107105]
[1757630813508,0.0369,115300.0,115290.0,0.27462448]
[1757630813810,0.0369,115300.0,115290.0,0.107105]
[1757630814010,0.20441948,115300.0,115290.0,0.27462448]
[1757630814202,0.0369,115300.0,115290.0,0.27462448]
[1757630815599,0.20441948,115300.0,115290.0,0.27462448]
[1757630815800,0.0369,115300.0,115290.0,0.27462448]
[1757630816309,0.85094,115300.0,115290.0,0.27462448]
[1757630816508,0.85094,115300.0,115290.0,0.28800448]
[1757630817110,0.85094,115300.0,115290.0,0.27462448]
[1757630817311,1.01845948,115300.0,115290.0,0.25298448]
[1757630817608,0.85094,115300.0,115290.0,0.25298448]
[1757630817804,1.2038501,115300.0,115290.0,0.076896]
[1757630818004,0.03486,115290.0,115280.0,0.27829548]
[1757630818408,0.02122,115290.0,115280.0,0.27829548]
[1757630818811,0.02122,115290.0,115280.0,0.30912301]
[1757630819208,0.02122,115290.0,115280.0,0.36891896]
[1757630819712,0.02122,115290.0,115280.0,0.48530178]
[1757630819915,0.02122,115290.0,115280.0,0.39757825]
[1757630821613,0.02122,115290.0,115280.0,0.06253929]
[1757630821808,0.02122,115290.0,115280.0,0.39757825]
[1757630823214,0.02122,115290.0,115280.0,0.37757825]
[1757630824816,0.02122,115290.0,115280.0,0.45441247]
[1757630827607,0.02122,115290.0,115280.0,0.37757825]
[1757630829418,0.02122,115290.0,115280.0,0.45438682]
[1757630829916,0.02122,115290.0,115280.0,0.37757825]
[1757630832418,0.02122,115290.0,115280.0,0.48530178]
[1757630834917,0.02122,115290.0,115280.0,0.4544809]
[1757630835721,0.02122,115290.0,115280.0,0.11944194]
[1757630835922,0.02122,115290.0,115280.0,0.15026282]
[1757630836122,0.02122,115290.0,115280.0,0.48530178]
[1757630840625,0.02122,115290.0,115280.0,0.15026282]
[1757630840819,0.02122,115290.0,115280.0,0.48530178]
[1757630841222,0.03486,115290.0,115280.0,0.37757825]
[1757630842826,0.02122,115290.0,115280.0,0.37757825]
[1757630843525,0.02122,115290.0,115280.0,0.48530178]
[1757630847228,0.02122,115290.0,115280.0,0.49530178]
[1757630848428,0.02122,115290.0,115280.0,0.48530178]
[1757630851230,0.02122,115290.0,115280.0,0.37757825]
[1757630851822,0.02122,115290.0,115280.0,0.38757825]
[1757630852022,0.02122,115290.0,115280.0,0.05253929]
[1757630852221,0.02122,115290.0,115280.0,0.37757825]
[1757630852419,0.02122,115290.0,115280.0,0.16026282]
[1757630852622,0.02122,115290.0,115280.0,0.49530178]
[1757630853229,0.02122,115290.0,115280.0,0.48530178]
[1757630853732,0.02122,115290.0,115280.0,0.49530178]
[1757630854230,0.02122,115290.0,115280.0,0.48530178]
[1757630854532,0.02122,115290.0,115280.0,0.3837408]
[1757630855231,0.02122,115290.0,115280.0,0.3737408]
[1757630855432,0.02122,115290.0,115280.0,0.3837408]
[1757630857425,0.02122,115290.0,115280.0,0.3737408]
[1757630861831,0.02122,115290.0,115280.0,0.26601727]
[1757630862136,0.02122,115290.0,115280.0,0.27601727]
[1757630862333,0.02122,115290.0,115280.0,0.04253929]
[1757630862534,0.02122,115290.0,115280.0,0.26601727]
[1757630863536,0.02122,115290.0,115280.0,0.27601727]
[1757630864442,0.11757868,115290.0,115280.0,0.26601727]
[1757630864630,0.11757868,115290.0,115280.0,0.27601727]
[1757630865330,0.11757868,115290.0,115280.0,0.26601727]
[1757630865535,0.11757868,115290.0,115280.0,0.3737408]
[1757630866237,0.11757868,115290.0,115280.0,0.3837408]
[1757630866440,0.11757868,115290.0,115280.0,0.26601727]
[1757630866737,0.11757868,115290.0,115280.0,0.27601727]
[1757630867339,0.11757868,115290.0,115280.0,0.26601727]
[1757630867741,0.11757868,115290.0,115280.0,0.27601727]
[1757630869433,0.11757868,115290.0,115280.0,0.26601727]
[1757630869633,0.11757868,115290.0,115280.0,0.27601727]
[1757630870342,0.11757868,115290.0,115280.0,0.26601727]
[1757630870843,0.11757868,115290.0,115280.0,0.27601727]
[1757630871344,0.11757868,115290.0,115280.0,0.26601727]
[1757630871546,0.11757868,115290.0,115280.0,0.27601727]
[1757630874144,0.11757868,115290.0,115280.0,0.27601727]
[1757630874347,0.11757868,115290.0,115280.0,0.38383101]
[1757630875447,0.11757868,115290.0,115280.0,0.37383101]
[1757630875647,0.11757868,115290.0,115280.0,0.38383101]
[1757630876548,0.11757868,115290.0,115280.0,0.37383101]
[1757630877748,0.11757868,115290.0,115280.0,0.38383101]
[1757630877946,0.11757868,115290.0,115280.0,0.16035303]
[1757630878150,0.11757868,115290.0,115280.0,0.38383101]
[1757630878449,0.11757868,115290.0,115280.0,0.37383101]
[1757630878950,0.11757868,115290.0,115280.0,0.38383101]
[1757630879456,0.11757868,115290.0,115280.0,0.37383101]
[1757630880052,0.11757868,115290.0,115280.0,0.38383101]
[1757630880452,0.11757868,115290.0,115280.0,0.37383101]
[1757630880751,0.11757868,115290.0,115280.0,0.38383101]
[1757630881452,0.11757868,115290.0,115280.0,0.37383101]
[1757630881654,0.11757868,115290.0,115280.0,0.38383101]
[1757630882455,0.11757868,115290.0,115280.0,0.37383101]
[1757630882855,0.11757868,115290.0,115280.0,0.38383101]
[1757630883550,0.11757868,115290.0,115280.0,0.37383101]
[1757630884160,0.11757868,115290.0,115280.0,0.39383101]
[1757630884457,0.11757868,115290.0,115280.0,0.37383101]
[1757630885654,0.49224767,115290.0,115280.0,0.11647303]
[1757630885860,0.49224767,115290.0,115280.0,0.18488016]
[1757630886156,0.49224767,115290.0,115280.0,0.07706642]
[1757630887254,0.49224767,115290.0,115270.0,0.07706642]
[1757630887564,1.03975767,115280.0,115270.0,0.09894151]
[1757630887864,1.03975767,115280.0,115270.0,0.1074429]
[1757630888064,1.03975767,115280.0,115270.0,0.21918189]
[1757630888358,0.92001868,115280.0,115270.0,0.23182189]
[1757630888754,0.92001868,115280.0,115270.0,0.1200829]
[1757630888953,0.92001868,115280.0,115270.0,0.23182189]
[1757630889354,0.92001868,115280.0,115270.0,0.23382189]
[1757630892964,0.92001868,115280.0,115270.0,0.1220829]
[1757630893163,0.92001868,115280.0,115270.0,0.23382189]
[1757630893863,0.92785868,115280.0,115270.0,0.23382189]
[1757630894464,0.92785868,115280.0,115270.0,0.1094429]
[1757630894665,0.92785868,115280.0,115270.0,0.22118189]
[1757630895162,1.03959767,115280.0,115270.0,0.22118189]
[1757630895657,1.03959767,115280.0,115270.0,0.14418038]
[1757630896568,1.03959767,115280.0,115270.0,0.15682038]
[1757630898466,1.03959767,115280.0,115270.0,0.04508139]
[1757630898672,1.03959767,115280.0,115270.0,0.15682038]
[1757630898865,1.03959767,115280.0,115270.0,0.23382189]
[1757630899263,1.03959767,115280.0,115270.0,0.15682038]
[1757630899568,1.04115767,115280.0,115270.0,0.15682038]
[1757630899967,1.04103767,115280.0,115270.0,0.15682038]
[1757630900369,0.23699767,115280.0,115270.0,0.15682038]
[1757630900764,1.04087767,115280.0,115270.0,0.15682038]
[1757630901568,0.92913868,115280.0,115270.0,0.23382189]
[1757630901764,1.04087767,115280.0,115270.0,0.23382189]
[1757630906074,0.23699767,115280.0,115270.0,0.23382189]
[1757630906266,1.04019767,115280.0,115270.0,0.23382189]
[1757630907770,0.92845868,115280.0,115270.0,0.23382189]
[1757630909372,1.04019767,115280.0,115270.0,0.23382189]
[1757630910074,1.04019767,115280.0,115270.0,0.1094429]
[1757630910373,1.04019767,115280.0,115270.0,0.22118189]
[1757630912572,1.04019767,115280.0,115270.0,0.1094429]
[1757630913374,1.04019767,115280.0,115270.0,0.22118189]
[1757630914367,1.09612785,115280.0,115270.0,0.20011056]
[1757630915474,1.09612785,115280.0,115270.0,0.3079243]
[1757630915871,0.92845868,115280.0,115270.0,0.3079243]
[1757630916071,1.09612785,115280.0,115270.0,0.3079243]
[1757630916371,0.29292785,115280.0,115270.0,0.3079243]
[1757630916572,1.08776785,115280.0,115270.0,0.3206943]
[1757630917174,0.92009868,115280.0,115270.0,0.3206943]
[1757630917378,1.08776785,115280.0,115270.0,0.3206943]
[1757630918279,0.28508785,115280.0,115270.0,0.3206943]
[1757630918486,1.08756785,115280.0,115270.0,0.3206943]
[1757630919282,1.09540785,115280.0,115270.0,0.14025513]
[1757630919481,1.09540785,115280.0,115270.0,0.3079243]
[1757630924281,0.12525868,115280.0,115270.0,0.3079243]
[1757630924486,1.09452785,115280.0,115270.0,0.3206943]
[1757630924674,1.09444785,115280.0,115270.0,0.21288056]
[1757630925083,1.09444785,115280.0,115270.0,0.3206943]
[1757630925477,1.08664785,115280.0,115270.0,0.3206943]
[1757630925876,0.28508785,115280.0,115270.0,0.3206943]
[1757630926078,1.08640785,115280.0,115270.0,0.3206943]
[1757630927282,0.11741868,115280.0,115270.0,0.3206943]
[1757630927486,0.11741868,115280.0,115270.0,0.73836347]
[1757630927686,0.91849868,115280.0,115270.0,0.73836347]
[1757630927988,0.91849868,115280.0,115270.0,0.5706943]
[1757630928487,0.91837868,115280.0,115270.0,0.5706943]
[1757630929689,0.91817868,115280.0,115270.0,0.5706943]
[1757630929886,0.91817868,115280.0,115270.0,0.73836347]
[1757630930493,0.91817868,115280.0,115270.0,0.8154295]
[1757630930787,0.91817868,115280.0,115270.0,0.70761576]
[1757630930984,0.32919888,115300.0,115270.0,0.70761576]
[1757630930985,0.01738746,115310.0,115300.0,0.01277]
[1757630931187,0.22085663,115310.0,115300.0,0.03509]
[1757630931491,0.22085663,115310.0,115300.0,0.02232]
[1757630931682,0.22085663,115310.0,115300.0,0.09938603]
[1757630931882,0.22085663,115310.0,115300.0,0.02232]
[1757630934891,0.22085663,115310.0,115300.0,0.09938603]
[1757630935294,0.22085663,115310.0,115300.0,0.02232]
[1757630937684,0.05318746,115310.0,115300.0,0.02232]
[1757630937993,0.22085663,115310.0,115300.0,0.18998917]
[1757630938302,0.22085663,115310.0,115300.0,0.02232]
[1757630938491,0.22085663,115310.0,115300.0,0.18998917]
[1757630940496,0.22131983,115310.0,115300.0,0.18998917]
[1757630940990,0.05365066,115310.0,115300.0,0.18998917]
[1757630941197,0.22131983,115310.0,115300.0,0.18998917]
[1757630943705,0.22131983,115310.0,115300.0,0.02232]
[1757630943897,0.03542,115300.0,115290.0,0.07706603]
[1757630944096,0.03021,115290.0,115280.0,0.20736977]
[1757630944293,0.19787917,115290.0,115280.0,0.19015917]
[1757630944493,0.44787917,115290.0,115270.0,0.18894056]
[1757630944698,0.19003917,115280.0,115270.0,0.28849659]
[1757630944894,0.82201,115280.0,115270.0,0.28849659]
[1757630945094,0.02237,115280.0,115270.0,0.2799952]
[1757630945294,0.98967917,115280.0,115270.0,0.2799952]
[1757630946402,0.98967917,115280.0,115270.0,0.20292917]
[1757630946594,0.82201,115280.0,115270.0,0.20292917]
[1757630946795,0.98967917,115280.0,115270.0,0.20292917]
[1757630947300,0.98967917,115280.0,115270.0,0.20392917]
[1757630947501,0.98967917,115280.0,115270.0,0.20492917]
[1757630948005,0.19003917,115280.0,115270.0,0.20492917]
[1757630948195,0.98971917,115280.0,115270.0,0.20492917]
[1757630948395,0.19003917,115280.0,115270.0,0.20492917]
[1757630948599,0.98971917,115280.0,115270.0,0.20492917]
[1757630949800,0.98971917,115280.0,115270.0,0.2819952]